bitfinex/quotes_BTCUSD_20241018
["timestamp","ask_amount","ask_price","bid_price","bid_amount"]
[1729230235806,0.52457883,67894.0,67893.0,0.00256009]
[1729230236012,0.52457883,67894.0,67893.0,0.0333656]
[1729230236214,0.52457883,67894.0,67893.0,0.00256009]
[1729230236421,0.52457883,67894.0,67893.0,0.0333656]
[1729230236647,0.52457883,67894.0,67893.0,0.00256009]
[1729230237691,0.52457883,67894.0,67893.0,0.03336573]
[1729230238770,0.52257883,67894.0,67893.0,0.03336573]
[1729230240295,0.35953419,67894.0,67893.0,0.03336573]
[1729230241288,0.36153419,67894.0,67893.0,0.03336573]
[1729230242062,0.33924715,67894.0,67893.0,0.03336573]
[1729230242290,0.18995915,67894.0,67893.0,0.03336573]
[1729230242573,0.35302671,67894.0,67893.0,0.27985573]
[1729230242956,0.18995915,67894.0,67893.0,0.27985573]
[1729230243365,0.041,67894.0,67893.0,0.27985573]
[1729230243513,0.041,67894.0,67893.0,0.35625573]
[1729230245112,0.041,67894.0,67893.0,0.13256573]
[1729230245314,0.041,67894.0,67893.0,0.03336573]
[1729230245440,0.21451586,67894.0,67893.0,0.03336573]
[1729230245644,0.06722786,67894.0,67893.0,0.03336573]
[1729230246247,0.21451586,67894.0,67893.0,0.03336573]
[1729230246468,0.06722786,67894.0,67893.0,0.03336573]
[1729230247493,0.23038294,67894.0,67893.0,0.03336573]
[1729230247929,0.37767094,67894.0,67893.0,0.03336573]
[1729230248146,0.23038294,67894.0,67893.0,0.03336573]
[1729230248376,0.23038294,67894.0,67893.0,0.00256009]
[1729230248583,0.37767094,67894.0,67893.0,0.02836655]
[1729230248794,0.23038294,67894.0,67893.0,0.02836655]
[1729230249017,0.37849894,67894.0,67893.0,0.02836655]
[1729230249237,0.23121094,67894.0,67893.0,0.02836655]
[1729230249466,0.37849894,67894.0,67893.0,0.02836655]
[1729230249717,0.23121094,67894.0,67893.0,0.02836655]
[1729230250146,0.37849894,67894.0,67893.0,0.02836655]
[1729230250349,0.21534386,67894.0,67893.0,0.02836655]
[1729230251109,0.36430301,67894.0,67893.0,0.02836655]
[1729230251459,0.36430301,67894.0,67893.0,0.00256009]
[1729230251890,0.36430301,67894.0,67893.0,0.02836761]
[1729230252119,0.36430301,67894.0,67893.0,0.00256009]
[1729230252323,0.36430301,67894.0,67893.0,0.02836761]
[1729230252529,0.36430301,67894.0,67893.0,0.00256009]
[1729230252530,0.52753552,67894.0,67893.0,0.00256009]
[1729230252733,0.52753552,67894.0,67893.0,0.0283681]
[1729230252937,0.52753552,67894.0,67893.0,0.00256009]
[1729230253140,0.52753552,67894.0,67893.0,0.0283681]
[1729230253353,0.52753552,67894.0,67893.0,0.00256009]
[1729230253560,0.52753552,67894.0,67893.0,0.0283681]
[1729230253760,0.52753552,67894.0,67893.0,0.00256009]
[1729230253971,0.52753552,67894.0,67893.0,0.02836826]
[1729230254214,0.52753552,67894.0,67893.0,0.00256009]
[1729230254433,0.52953552,67894.0,67893.0,0.00256009]
[1729230255260,0.52753378,67894.0,67893.0,0.00256009]
[1729230256117,0.52953378,67894.0,67893.0,0.00256009]
[1729230256333,0.50330592,67894.0,67893.0,0.00256009]
[1729230256539,0.50130592,67894.0,67893.0,0.00256009]
[1729230257236,0.50130592,67894.0,67893.0,0.02836853]
[1729230257437,0.50130592,67894.0,67893.0,0.00256009]
[1729230257643,0.50130592,67894.0,67893.0,0.02836873]
[1729230257850,0.50130592,67894.0,67893.0,0.00256009]
[1729230258059,0.50130592,67894.0,67893.0,0.02836873]
[1729230258308,0.50130592,67894.0,67893.0,0.00256009]
[1729230258518,0.50130592,67894.0,67893.0,0.11996873]
[1729230258727,0.50130592,67894.0,67893.0,0.11996923]
[1729230259151,0.48666321,67894.0,67893.0,0.11996923]
[1729230260030,0.20503471,67894.0,67893.0,0.11996923]
[1729230260248,0.20503471,67894.0,67893.0,0.26725923]
[1729230260457,0.33767175,67894.0,67893.0,0.26725923]
[1729230261323,0.33767175,67894.0,67893.0,0.11996923]
[1729230261530,0.26945759,67894.0,67893.0,0.02836923]
[1729230262164,0.41674559,67894.0,67893.0,0.02836923]
[1729230262373,0.26945759,67894.0,67893.0,0.02836923]
[1729230262584,0.20503471,67894.0,67893.0,0.02836923]
[1729230263449,0.35232271,67894.0,67893.0,0.02836923]
[1729230263915,0.35232271,67894.0,67893.0,0.00256009]
[1729230264155,0.33766435,67894.0,67893.0,0.00256009]
[1729230264373,0.48495235,67894.0,67893.0,0.02836728]
[1729230264578,0.20503471,67894.0,67893.0,0.00256009]
[1729230264852,0.35232271,67894.0,67893.0,0.02836728]
[1729230265264,0.47427568,67894.0,67893.0,0.00256009]
[1729230265472,0.45961578,67894.0,67893.0,0.02836728]
[1729230265679,0.32698768,67894.0,67893.0,0.00256009]
[1729230265888,0.20503471,67894.0,67893.0,0.02836685]
[1729230266101,0.20503471,67894.0,67893.0,0.00256009]
[1729230266308,0.20503471,67894.0,67893.0,0.02836685]
[1729230267174,0.33766094,67894.0,67893.0,0.02836685]
[1729230267390,0.20503471,67894.0,67893.0,0.02836685]
[1729230267812,0.35232271,67894.0,67893.0,0.02836685]
[1729230268039,0.46278924,67894.0,67893.0,0.02836685]
[1729230268681,0.46278924,67894.0,67893.0,0.00256009]
[1729230269092,0.31550124,67894.0,67893.0,0.00256009]
[1729230269514,0.31548902,67894.0,67893.0,0.00256009]
[1729230271984,0.31548902,67894.0,67893.0,0.02836818]
[1729230272202,0.31548902,67894.0,67893.0,0.00256009]
[1729230272442,0.31548902,67894.0,67893.0,0.02836816]
[1729230272644,0.46277702,67894.0,67893.0,0.00256009]
[1729230272852,0.46277702,67894.0,67893.0,0.02836816]
[1729230273056,0.46277702,67894.0,67893.0,0.00256009]
[1729230273057,0.46477702,67894.0,67893.0,0.00256009]
[1729230273264,0.35431049,67894.0,67893.0,0.00256009]
[1729230273465,0.20502249,67894.0,67893.0,0.00256009]
[1729230274559,0.20502249,67894.0,67893.0,0.02836894]
[1729230274781,0.20502249,67894.0,67893.0,0.00256009]
[1729230275002,0.20502249,67894.0,67893.0,0.02836894]
[1729230275236,0.20502249,67894.0,67893.0,0.00256009]
[1729230275467,0.20702249,67894.0,67893.0,0.02836894]
[1729230275585,0.20502249,67894.0,67893.0,0.00256009]
[1729230275816,0.20502249,67894.0,67893.0,0.02836894]
[1729230276938,0.35231049,67894.0,67893.0,0.02836894]
[1729230277083,0.20502249,67894.0,67893.0,0.02836894]
[1729230279128,0.20503479,67894.0,67893.0,0.02836894]
[1729230282711,0.19503479,67894.0,67893.0,0.02836894]
[1729230282926,0.20503479,67894.0,67893.0,0.02836894]
[1729230286868,0.20703479,67894.0,67893.0,0.02836894]
[1729230287008,0.35432279,67894.0,67893.0,0.02836894]
[1729230287214,0.35232279,67894.0,67893.0,0.02836894]
[1729230287532,0.60933621,67894.0,67893.0,0.02836894]
[1729230287715,0.50328194,67894.0,67893.0,0.02836894]
[1729230287953,0.50328194,67894.0,67893.0,0.00256009]
[1729230290651,0.50128194,67894.0,67893.0,0.00256009]
[1729230293783,0.50129913,67894.0,67893.0,0.00256009]
[1729230294444,0.64099401,67894.0,67893.0,0.00256009]
[1729230300756,0.27915548,67892.0,67891.0,0.001656]
[1729230300984,0.59133861,67892.0,67891.0,0.001656]
[1729230301241,0.76663861,67892.0,67891.0,0.001656]
[1729230301463,0.76663861,67892.0,67885.0,0.001656]
[1729230301464,0.162305,67886.0,67885.0,0.001656]
[1729230301673,0.68685161,67886.0,67885.0,0.001656]
[1729230301879,0.68680249,67886.0,67885.0,0.001656]
[1729230303029,1.00816597,67886.0,67885.0,0.003656]
[1729230303243,1.15712512,67886.0,67885.0,0.003656]
[1729230304311,1.38556992,67886.0,67885.0,0.003656]
[1729230304527,1.15712512,67886.0,67885.0,0.003656]
[1729230304739,1.13112512,67886.0,67885.0,0.001656]
[1729230305163,1.15912512,67886.0,67885.0,0.001656]
[1729230305409,0.017,67880.0,67879.0,0.001656]
[1729230305642,1.01746523,67880.0,67879.0,0.001656]
[1729230305878,0.90260294,67880.0,67879.0,0.001656]
[1729230306099,1.01746642,67880.0,67879.0,0.001656]
[1729230306331,1.01746552,67880.0,67879.0,0.001656]
[1729230306516,1.01747464,67880.0,67879.0,0.001656]
[1729230308085,1.03147464,67880.0,67879.0,0.001656]
[1729230308294,1.04547464,67880.0,67879.0,0.001656]
[1729230308504,1.01747464,67880.0,67879.0,0.001656]
[1729230308899,1.04547464,67880.0,67879.0,0.001656]
[1729230312632,0.26432,67879.0,67878.0,0.0011445]
[1729230312831,0.72541316,67879.0,67878.0,0.0011445]
[1729230314627,0.8575528,67879.0,67878.0,0.0011445]
[1729230315038,0.8715528,67879.0,67878.0,0.0011445]
[1729230315457,0.8855528,67879.0,67878.0,0.0011445]
[1729230315667,0.164333,67873.0,67872.0,0.22231279]
[1729230315889,0.49421671,67873.0,67872.0,0.22231279]
[1729230316119,0.162347,67867.0,67863.0,0.40031279]
[1729230316345,0.31130615,67867.0,67863.0,0.40031279]
[1729230316581,0.31130615,67867.0,67866.0,0.05099932]
[1729230317029,0.31130615,67867.0,67866.0,0.37044832]
[1729230317030,0.015,67867.0,67866.0,0.37044832]
[1729230317248,0.04404072,67874.0,67871.0,0.0777]
[1729230317249,0.005,67874.0,67871.0,0.0777]
[1729230317459,0.005,67875.0,67874.0,0.319431]
[1729230317933,0.005,67875.0,67874.0,0.3454097]
[1729230318751,0.014,67875.0,67874.0,0.3454097]
[1729230318960,0.024,67875.0,67874.0,0.3454097]
[1729230319181,0.015,67875.0,67874.0,0.3454097]
[1729230319395,0.022,67875.0,67874.0,0.3454097]
[1729230320276,0.032,67875.0,67874.0,0.3454097]
[1729230322310,0.032,67875.0,67874.0,0.1980787]
[1729230323551,0.05430852,67875.0,67874.0,0.1980787]
[1729230323763,0.20163752,67875.0,67874.0,0.1980787]
[1729230323979,0.05430852,67875.0,67874.0,0.1980787]
[1729230324435,0.04430852,67875.0,67874.0,0.1980787]
[1729230324861,0.034,67875.0,67874.0,0.1980787]
[1729230325074,0.029,67875.0,67874.0,0.1980787]
[1729230325291,0.022,67875.0,67874.0,0.1980787]
[1729230325507,0.036,67875.0,67874.0,0.1980787]
[1729230325731,0.183329,67875.0,67874.0,0.1980787]
[1729230325945,0.036,67875.0,67874.0,0.1980787]
[1729230326356,0.08820107,67875.0,67874.0,0.1980787]
[1729230326569,0.036,67875.0,67874.0,0.1980787]
[1729230326794,0.021,67875.0,67874.0,0.3454097]
[1729230327021,0.021,67875.0,67874.0,0.46027318]
[1729230327467,0.021,67875.0,67874.0,0.3454097]
[1729230327678,0.009,67875.0,67874.0,0.3454097]
[1729230327913,0.005,67881.0,67880.0,0.224218]
[1729230328130,0.005,67881.0,67880.0,0.321318]
[1729230328363,0.005,67881.0,67880.0,0.35041395]
[1729230329866,0.013,67881.0,67880.0,0.35041395]
[1729230330528,0.024,67881.0,67880.0,0.35041395]
[1729230331209,0.024,67881.0,67880.0,0.20309595]
[1729230331438,0.024,67881.0,67880.0,0.35041395]
[1729230332903,0.024,67881.0,67880.0,0.20309595]
[1729230333102,0.024,67881.0,67880.0,0.35041395]
[1729230338653,0.0900644,67881.0,67880.0,0.35041395]
[1729230339373,0.0900644,67881.0,67880.0,0.20309595]
[1729230339611,0.016,67881.0,67880.0,0.20309595]
[1729230340037,0.015,67881.0,67880.0,0.20309595]
[1729230340246,0.005,67881.0,67880.0,0.20309595]
[1729230340452,0.018,67881.0,67880.0,0.20309595]
[1729230340670,0.18156247,67881.0,67880.0,0.20309595]
[1729230340875,0.16856247,67881.0,67880.0,0.20309595]
[1729230341287,0.18256247,67881.0,67880.0,0.35041395]
[1729230341497,0.27072819,67881.0,67880.0,0.35041395]
[1729230341919,0.26772819,67881.0,67880.0,0.35041395]
[1729230342141,0.25672819,67881.0,67880.0,0.35041395]
[1729230342556,0.27072819,67881.0,67880.0,0.20309595]
[1729230342764,0.27072819,67881.0,67880.0,0.35041395]
[1729230343406,0.28472819,67881.0,67880.0,0.20309595]
[1729230343618,0.19656247,67881.0,67880.0,0.20309595]
[1729230343819,0.18256247,67881.0,67880.0,0.20309595]
[1729230344247,0.19656247,67881.0,67880.0,0.20309595]
[1729230345082,0.19656247,67881.0,67880.0,0.35041395]
[1729230345462,0.45408562,67881.0,67880.0,0.20309595]
[1729230345664,0.45408562,67881.0,67880.0,0.12619595]
[1729230345863,0.45408562,67881.0,67880.0,0.02909595]
[1729230346045,0.005,67878.0,67877.0,0.147324]
[1729230346249,0.07117536,67878.0,67877.0,0.147324]
[1729230347440,0.08517536,67878.0,67877.0,0.147324]
[1729230348585,0.08517668,67878.0,67877.0,0.147324]
[1729230349039,0.09617668,67878.0,67877.0,0.147324]
[1729230349466,0.09617668,67878.0,67877.0,0.17647536]
[1729230350553,0.03,67878.0,67877.0,0.17647536]
[1729230353459,0.19288744,67878.0,67877.0,0.17647536]
[1729230354345,0.19289192,67878.0,67877.0,0.17647536]
[1729230354564,0.28114659,67878.0,67877.0,0.17647536]
[1729230358551,0.19289192,67878.0,67877.0,0.17647536]
[1729230359277,0.19296659,67878.0,67877.0,0.17647536]
[1729230359505,0.3033355,67878.0,67877.0,0.17647536]
[1729230361679,0.19296659,67878.0,67877.0,0.17647536]
[1729230362644,0.18806259,67878.0,67877.0,0.17647536]
[1729230362871,0.13545865,67878.0,67877.0,0.27107536]
[1729230363115,0.025,67878.0,67877.0,0.27107536]
[1729230363360,0.18806259,67878.0,67877.0,0.27107536]
[1729230364578,0.18810102,67878.0,67877.0,0.27107536]
[1729230364818,0.0912757,67878.0,67877.0,0.27107536]
[1729230365071,0.025,67878.0,67877.0,0.27107536]
[1729230365323,0.18810208,67878.0,67877.0,0.27107536]
[1729230366303,0.025,67878.0,67877.0,0.27107536]
[1729230366535,0.09127534,67878.0,67877.0,0.34957536]
[1729230367245,0.025,67878.0,67877.0,0.34957536]
[1729230368381,0.09127627,67878.0,67877.0,0.34957536]
[1729230370596,0.025,67878.0,67877.0,0.34957536]
[1729230370802,0.09127627,67878.0,67877.0,0.34957536]
[1729230371446,0.07727627,67878.0,67877.0,0.34957536]
[1729230372128,0.06627919,67879.0,67877.0,0.20225136]
[1729230372341,0.06627919,67878.0,67877.0,0.64422636]
[1729230372547,0.07227919,67878.0,67877.0,0.64422636]
[1729230372966,0.08027919,67878.0,67877.0,0.64422636]
[1729230373436,0.08527919,67878.0,67877.0,0.64422636]
[1729230373661,0.005,67878.0,67877.0,0.64422636]
[1729230373896,0.013,67878.0,67877.0,0.64422636]
[1729230374759,0.1761329,67878.0,67877.0,0.64422636]
[1729230375197,0.013,67878.0,67877.0,0.64422636]
[1729230375633,0.17697055,67878.0,67877.0,0.64422636]
[1729230375849,0.013828,67878.0,67877.0,0.64422636]
[1729230376920,0.17698078,67878.0,67877.0,0.64422636]
[1729230379222,0.013828,67878.0,67877.0,0.64422636]
[1729230379440,0.26537073,67878.0,67877.0,0.64422636]
[1729230379658,0.17697473,67878.0,67877.0,0.64422636]
[1729230379876,0.013828,67878.0,67877.0,0.64422636]
[1729230382067,0.08011904,67878.0,67877.0,0.64422636]
[1729230382318,0.013828,67878.0,67877.0,0.64422636]
[1729230382752,0.08011657,67878.0,67877.0,0.64422636]
[1729230386996,0.013828,67878.0,67877.0,0.93104899]
[1729230387477,0.013828,67878.0,67877.0,0.9769389]
[1729230387690,0.013828,67878.0,67877.0,1.0769389]
[1729230388140,0.008828,67878.0,67877.0,1.0819389]
[1729230388573,0.009828,67878.0,67877.0,1.0819389]
[1729230388784,0.000828,67878.0,67877.0,1.0819389]
[1729230389277,0.002828,67878.0,67877.0,1.0819389]
[1729230389744,0.001828,67878.0,67877.0,1.0819389]
[1729230389955,0.002828,67878.0,67877.0,1.0819389]
[1729230390791,0.002828,67878.0,67877.0,1.0839389]
[1729230391010,0.002828,67878.0,67877.0,1.09320001]
[1729230393026,0.002828,67878.0,67877.0,0.93244662]
[1729230393245,0.002828,67878.0,67877.0,0.92118551]
[1729230393469,0.002828,67878.0,67877.0,1.03604899]
[1729230393929,0.000828,67881.0,67879.0,0.005]
[1729230394147,0.000828,67891.0,67877.0,0.53083747]
[1729230394148,0.22314079,67891.0,67890.0,0.26216048]
[1729230394366,0.22314079,67891.0,67890.0,0.41111963]
[1729230394612,0.22314079,67891.0,67890.0,0.44098354]
[1729230394613,0.000828,67891.0,67890.0,0.44098354]
[1729230396814,0.22779679,67903.0,67902.0,0.147271]
[1729230397232,0.22779679,67903.0,67902.0,0.02982438]
[1729230397233,0.005484,67903.0,67902.0,0.02982438]
[1729230397443,0.005484,67903.0,67902.0,0.17709538]
[1729230397648,0.005484,67903.0,67902.0,0.147271]
[1729230397864,0.005484,67903.0,67902.0,0.17709538]
[1729230398082,0.005484,67903.0,67902.0,0.02982438]
[1729230398298,0.005484,67903.0,67902.0,0.17709538]
[1729230398958,0.014484,67903.0,67902.0,0.17709538]
[1729230400449,0.026484,67903.0,67902.0,0.17709538]
[1729230400631,0.017484,67903.0,67902.0,0.17709538]
[1729230400858,0.028484,67903.0,67902.0,0.17709538]
[1729230401067,0.016484,67903.0,67902.0,0.17709538]
[1729230401475,0.039484,67903.0,67902.0,0.17709538]
[1729230401910,0.039484,67903.0,67902.0,0.02982438]
[1729230402142,0.039484,67903.0,67902.0,0.147271]
[1729230402371,0.039484,67903.0,67902.0,0.17709235]
[1729230403261,0.026484,67903.0,67902.0,0.17709235]
[1729230403690,0.040484,67903.0,67902.0,0.17709235]
[1729230403894,0.019484,67903.0,67902.0,0.17709235]
[1729230404045,0.030484,67903.0,67902.0,0.17709235]
[1729230408589,0.025484,67903.0,67902.0,0.17709235]
[1729230409030,0.025484,67903.0,67902.0,0.27039235]
[1729230409468,0.011484,67903.0,67902.0,0.27039235]
[1729230409900,0.012484,67903.0,67902.0,0.27039235]
[1729230410127,0.001484,67903.0,67902.0,0.27039235]
[1729230410341,0.000484,67903.0,67902.0,0.27039235]
[1729230410755,0.004484,67903.0,67902.0,0.27039235]
[1729230410964,0.005484,67903.0,67902.0,0.27039235]
[1729230411175,0.000484,67903.0,67902.0,0.27039235]
[1729230411423,0.004484,67903.0,67902.0,0.27204835]
[1729230411622,0.005484,67903.0,67902.0,0.27204835]
[1729230411925,0.004484,67903.0,67902.0,0.27204835]
[1729230413205,0.006484,67903.0,67902.0,0.27204835]
[1729230413407,0.002484,67903.0,67902.0,0.27204835]
[1729230413613,0.007484,67903.0,67902.0,0.27204835]
[1729230416604,0.000484,67903.0,67902.0,0.27204835]
[1729230416819,0.003484,67903.0,67902.0,0.27204835]
[1729230417012,0.009484,67903.0,67902.0,0.27204835]
[1729230417514,0.003484,67903.0,67902.0,0.27204835]
[1729230417770,0.000484,67903.0,67902.0,0.27204835]
[1729230418000,0.007484,67903.0,67902.0,0.27204835]
[1729230418222,0.005484,67903.0,67902.0,0.27204835]
[1729230418436,0.01928869,67903.0,67902.0,0.27204835]
[1729230418850,0.00788249,67903.0,67902.0,0.27204835]
[1729230419072,0.000828,67904.0,67903.0,0.147268]
[1729230419482,0.000828,67904.0,67903.0,0.17707871]
[1729230420324,0.006828,67904.0,67903.0,0.17707871]
[1729230420738,0.003828,67904.0,67903.0,0.17707871]
[1729230421154,0.010828,67904.0,67903.0,0.17707871]
[1729230421607,0.003828,67904.0,67903.0,0.17707871]
[1729230423553,0.008828,67904.0,67903.0,0.17807871]
[1729230424244,0.000828,67904.0,67903.0,0.17707871]
[1729230424482,0.010828,67904.0,67903.0,0.17973471]
[1729230424919,0.004828,67904.0,67903.0,0.17873471]
[1729230425350,0.009828,67904.0,67903.0,0.17973471]
[1729230425566,0.005828,67904.0,67903.0,0.17973471]
[1729230425953,0.008828,67904.0,67903.0,0.17973471]
[1729230429041,0.008828,67904.0,67903.0,0.4020475]
[1729230429259,0.008828,67904.0,67903.0,0.35053471]
[1729230430132,0.009828,67904.0,67903.0,0.34953471]
[1729230430604,0.003828,67904.0,67903.0,0.34953471]
[1729230431041,0.008828,67904.0,67903.0,0.34953471]
[1729230431779,0.005828,67904.0,67903.0,0.34953471]
[1729230432230,0.006828,67904.0,67903.0,0.34953471]
[1729230432450,0.005828,67904.0,67903.0,0.34953471]
[1729230432914,0.000828,67904.0,67903.0,0.34953471]
[1729230433130,0.003828,67904.0,67903.0,0.34953471]
[1729230434222,0.000828,67904.0,67903.0,0.34953471]
[1729230436587,0.001828,67904.0,67903.0,0.34953471]
[1729230454265,0.001828,67904.0,67903.0,0.26893471]
[1729230454509,0.001828,67904.0,67903.0,0.38379819]
[1729230454733,0.001828,67904.0,67903.0,0.29359819]
[1729230455582,0.000828,67904.0,67903.0,0.29359819]
[1729230455836,0.003828,67904.0,67903.0,0.29359819]
[1729230456049,0.004828,67904.0,67903.0,0.29359819]
[1729230457299,0.001828,67904.0,67903.0,0.29359819]
[1729230457711,0.004828,67904.0,67903.0,0.29359819]
[1729230462284,0.04898197,67904.0,67903.0,0.17873471]
[1729230462506,0.07105896,67904.0,67903.0,0.17873471]
[1729230462716,0.0628032,67904.0,67903.0,0.17873471]
[1729230462929,0.04899117,67904.0,67903.0,0.17873471]
[1729230463135,0.06280294,67904.0,67903.0,0.17873471]
[1729230463346,0.04899117,67904.0,67903.0,0.17873471]
[1729230466710,0.004828,67904.0,67903.0,0.26147996]
[1729230466917,0.004828,67904.0,67903.0,0.35677973]
[1729230467135,0.004828,67904.0,67903.0,0.35383471]
[1729230467344,0.003828,67904.0,67903.0,0.35383471]
[1729230467555,0.000828,67904.0,67903.0,0.35383471]
[1729230469289,0.001828,67904.0,67903.0,0.35383471]
[1729230469747,0.000828,67904.0,67903.0,0.35383471]
[1729230475804,0.000828,67904.0,67903.0,0.50279386]
[1729230476008,0.000828,67904.0,67903.0,0.52579386]
[1729230476437,0.000828,67904.0,67903.0,0.5715946]
[1729230477475,0.001828,67904.0,67903.0,0.5715946]
[1729230478593,0.001828,67904.0,67903.0,0.58312414]
[1729230478834,0.000828,67904.0,67903.0,0.58312414]
[1729230479312,0.002828,67904.0,67903.0,0.58312414]
[1729230480007,0.002828,67904.0,67903.0,0.58308489]
[1729230480217,0.002828,67904.0,67903.0,0.52579386]
[1729230481488,0.001828,67904.0,67903.0,0.52579386]
[1729230482327,0.001828,67904.0,67903.0,0.35383471]
[1729230482536,0.001828,67904.0,67903.0,0.46869819]
[1729230482957,0.002828,67904.0,67903.0,0.46869819]
[1729230483166,0.001828,67904.0,67903.0,0.46869819]
[1729230483397,0.000828,67904.0,67903.0,0.35383471]
[1729230483609,0.001828,67904.0,67903.0,0.46869819]
[1729230483860,0.001828,67904.0,67903.0,0.64065734]
[1729230484692,0.002828,67904.0,67903.0,0.64065734]
[1729230484898,0.000828,67904.0,67903.0,0.64065734]
[1729230485361,0.001828,67904.0,67903.0,0.64065734]
[1729230486635,0.002828,67904.0,67903.0,0.64065734]
[1729230486847,0.001828,67904.0,67903.0,0.64065734]
[1729230487781,0.000828,67904.0,67903.0,0.64065734]
[1729230488154,0.001828,67904.0,67903.0,0.64065734]
[1729230488758,0.002828,67904.0,67903.0,0.64065734]
[1729230488896,0.002828,67904.0,67903.0,0.71415734]
[1729230489524,0.002828,67904.0,67903.0,0.82902082]
[1729230489731,0.002828,67904.0,67903.0,0.75987553]
[1729230489970,0.002828,67904.0,67903.0,0.71415734]
[1729230490139,0.002828,67904.0,67903.0,0.72557643]
[1729230491767,0.002828,67904.0,67903.0,0.99114572]
[1729230492021,0.002828,67904.0,67903.0,1.00114572]
[1729230492220,0.000828,67910.0,67907.0,0.005]
[1729230492392,0.000828,67910.0,67909.0,0.67728196]
[1729230492595,0.000828,67910.0,67909.0,0.8516185]
[1729230493801,0.001828,67910.0,67909.0,0.8516185]
[1729230494643,0.002828,67910.0,67909.0,0.8516185]
[1729230495286,0.001828,67910.0,67909.0,0.8516185]
[1729230495508,0.002828,67910.0,67909.0,0.8566185]
[1729230496166,0.001828,67910.0,67909.0,0.8566185]
[1729230496620,0.002828,67910.0,67909.0,0.8566185]
[1729230497078,0.001828,67910.0,67909.0,0.8566185]
[1729230497933,0.000828,67910.0,67909.0,0.8566185]
[1729230498350,0.001828,67910.0,67909.0,0.8676185]
[1729230498566,0.000828,67910.0,67909.0,0.8706185]
[1729230499036,0.000828,67910.0,67909.0,0.8846185]
[1729230507043,0.000828,67910.0,67909.0,0.93029224]
[1729230513402,0.000828,67910.0,67909.0,0.70056528]
[1729230513614,0.000828,67910.0,67909.0,0.93029224]
[1729230517990,0.000828,67910.0,67909.0,0.92529224]
[1729230518200,0.000828,67910.0,67909.0,0.84369224]
[1729230519937,0.000828,67910.0,67909.0,0.82969224]
[1729230520374,0.000828,67910.0,67909.0,0.84369224]
[1729230520863,0.000828,67910.0,67909.0,0.81569224]
[1729230521071,0.001828,67910.0,67909.0,0.82569224]
[1729230521285,0.001828,67910.0,67909.0,0.83969224]
[1729230536226,0.001828,67910.0,67909.0,0.72482876]
[1729230540538,0.001828,67910.0,67909.0,0.83969224]
[1729230540748,0.001828,67910.0,67909.0,0.96284806]
[1729230540978,0.001828,67910.0,67909.0,0.96285878]
[1729230541169,0.001828,67910.0,67909.0,0.96285911]
[1729230542014,0.001828,67910.0,67909.0,0.91889224]
[1729230542700,0.001828,67910.0,67909.0,0.51426528]
[1729230542930,0.001828,67910.0,67909.0,0.39126528]
[1729230543146,0.094128,67910.0,67909.0,0.19663239]
[1729230543360,0.177228,67910.0,67909.0,0.19663239]
[1729230544035,0.176228,67910.0,67909.0,0.18663239]
[1729230544248,0.176228,67910.0,67909.0,0.19663239]
[1729230544444,0.177228,67910.0,67909.0,0.18263239]
[1729230544669,0.176228,67910.0,67909.0,0.18263239]
[1729230545133,0.176228,67910.0,67909.0,0.18563239]
[1729230545562,0.22042318,67910.0,67909.0,0.18563239]
[1729230545769,0.22038935,67910.0,67909.0,0.18563239]
[1729230546003,0.22038935,67910.0,67909.0,0.17563239]
[1729230546251,0.22038935,67910.0,67909.0,0.17263239]
[1729230546515,0.176228,67910.0,67909.0,0.17263239]
[1729230546726,0.176228,67910.0,67909.0,0.17363239]
[1729230547139,0.178228,67910.0,67909.0,0.17363239]
[1729230551123,0.002828,67910.0,67909.0,0.17363239]
[1729230551306,0.002828,67910.0,67909.0,0.1765772]
[1729230553121,0.002828,67910.0,67909.0,0.32553611]
[1729230553324,0.002828,67910.0,67909.0,0.32259154]
[1729230557914,0.002828,67910.0,67909.0,0.17363239]
[1729230558917,0.002828,67910.0,67909.0,0.17657712]
[1729230559113,0.002828,67910.0,67909.0,0.17363239]
[1729230559746,0.000828,67910.0,67909.0,0.17363239]
[1729230559953,0.000828,67910.0,67909.0,0.17263239]
[1729230560162,0.000828,67910.0,67909.0,0.18663239]
[1729230561226,0.001828,67910.0,67909.0,0.19563239]
[1729230561442,0.001828,67910.0,67909.0,0.18163239]
[1729230562099,0.001828,67910.0,67909.0,0.19563239]
[1729230563343,0.001828,67910.0,67909.0,0.18163239]
[1729230563560,0.000828,67910.0,67909.0,0.17263239]
[1729230563765,0.001828,67910.0,67909.0,0.18363239]
[1729230564628,0.002828,67910.0,67909.0,0.19763239]
[1729230565054,0.001828,67910.0,67909.0,0.18363239]
[1729230565574,0.002828,67910.0,67909.0,0.19763239]
[1729230565986,0.002828,67910.0,67909.0,0.41994518]
[1729230566192,0.002828,67910.0,67909.0,0.19763239]
[1729230571653,0.002828,67910.0,67909.0,0.20057718]
[1729230573827,0.002828,67910.0,67909.0,0.34953633]
[1729230574072,0.002828,67910.0,67909.0,0.34659154]
[1729230576685,0.002828,67910.0,67909.0,0.34655518]
[1729230588195,0.002828,67910.0,67909.0,0.48441866]
[1729230588390,0.002828,67910.0,67909.0,0.46335518]
[1729230591425,0.002828,67910.0,67909.0,0.57821866]
[1729230591633,0.002828,67910.0,67909.0,0.46335518]
[1729230592516,0.002828,67910.0,67909.0,0.57821866]
[1729230592717,0.002828,67910.0,67909.0,0.46335518]
[1729230593753,0.002828,67910.0,67909.0,0.57821866]
[1729230593959,0.002828,67910.0,67909.0,0.46335518]
[1729230596966,0.002828,67910.0,67909.0,0.57821866]
[1729230597193,0.002828,67910.0,67909.0,0.46335518]
[1729230600498,0.002828,67910.0,67909.0,0.34655518]
[1729230600723,0.002828,67910.0,67909.0,0.46141866]
[1729230602889,0.002828,67910.0,67909.0,0.62821866]
[1729230603104,0.002828,67910.0,67909.0,1.02877876]
[1729230603311,0.002828,67910.0,67909.0,0.76608214]
[1729230603558,0.002828,67910.0,67909.0,0.81189554]
[1729230606687,0.002828,67910.0,67909.0,0.82319839]
[1729230609500,0.002828,67910.0,67909.0,0.82485439]
[1729230610212,0.002828,67910.0,67909.0,0.70999091]
[1729230611159,0.002828,67910.0,67909.0,0.82485439]
[1729230614874,0.06625417,67924.0,67909.0,0.82485439]
[1729230614875,0.04499744,67930.0,67921.0,0.1741]
[1729230615085,0.04499744,67930.0,67924.0,0.39994996]
[1729230615086,0.000828,67930.0,67924.0,0.39994996]
[1729230615339,0.000828,67930.0,67924.0,0.59472251]
[1729230615545,0.000828,67930.0,67924.0,0.5795483]
[1729230616190,0.001828,67925.0,67924.0,0.5795483]